bitfinex/quotes_ETHUSD_20260207
["timestamp","ask_amount","ask_price","bid_price","bid_amount"]
[1770428065328,0.002,2050.4,2049.8,1.21963118]
[1770428067703,0.002,2050.4,2049.8,5.2941225]
[1770428068635,0.002,2050.4,2049.9,4.07449132]
[1770428068925,0.002,2050.4,2050.0,4.60390357]
[1770428069919,0.006,2051.1,2050.5,4.07449132]
[1770428070121,0.002,2051.5,2050.5,4.07449132]
[1770428070431,1.22062142,2051.5,2050.7,4.07449132]
[1770428070610,1.22062142,2051.5,2050.5,5.045093]
[1770428070809,1.22062142,2051.5,2050.4,4.07449132]
[1770428070810,1.22062142,2051.5,2050.6,0.91195843]
[1770428071033,1.22062142,2051.5,2050.5,5.045093]
[1770428071231,0.002,2051.5,2050.5,4.07449132]
[1770428072032,0.002,2051.5,2050.6,1.21915536]
[1770428072208,0.002,2051.5,2050.6,5.29364668]
[1770428073236,0.002,2051.5,2050.7,4.07449132]
[1770428073432,0.002,2051.5,2050.8,0.52936467]
[1770428073939,0.002,2051.3,2050.8,0.52936467]
[1770428074235,0.002,2051.3,2050.6,1.21915536]
[1770428074433,0.002,2051.3,2050.5,4.87662147]
[1770428074746,0.002,2051.3,2050.6,4.07449132]
[1770428076513,0.002,2051.3,2050.8,4.02954934]
[1770428079044,0.002,2051.3,2050.9,1.21897703]
[1770428079347,0.003,2051.7,2051.0,1.01244345]
[1770428080220,0.003,2051.7,2051.0,5.04199279]
[1770428080818,4.19786628,2052.5,2051.1,4.02954934]
[1770428081027,5.41601177,2052.3,2051.3,1.21873933]
[1770428081321,1.13336736,2052.2,2051.4,1.0123246]
[1770428081622,1.21814549,2052.3,2051.4,1.0123246]
[1770428081939,4.19786628,2052.3,2051.4,1.0123246]
[1770428083217,5.41603554,2052.3,2051.5,1.21862052]
[1770428083419,1.21816926,2052.3,2051.5,1.21862052]
[1770428083743,4.87148817,2052.8,2051.6,4.02954934]
[1770428083943,4.87148817,2052.8,2051.5,1.21862052]
[1770428083944,1.04378165,2052.7,2051.7,4.55436633]
[1770428084117,9.58905245,2052.8,2051.7,4.55436633]
[1770428084318,1.04316827,2052.7,2051.7,4.55436633]
[1770428084647,9.58905245,2052.8,2051.7,4.55436633]
[1770428084850,2.12384775,2052.7,2051.8,0.45543663]
[1770428085048,1.08069012,2052.7,2051.8,0.45543663]
[1770428085221,1.21796745,2052.6,2051.8,1.67386365]
[1770428085549,1.21796745,2052.6,2051.8,1.67387864]
[1770428086054,5.24064146,2052.5,2051.3,1.21873771]
[1770428086237,1.21796745,2052.6,2051.5,4.02954934]
[1770428086238,1.04277518,2052.4,2051.5,4.02954934]
[1770428086437,0.002,2052.1,2051.8,1.21843747]
[1770428086643,0.002,2052.1,2051.8,1.82767845]
[1770428088722,1.21792413,2052.7,2051.9,4.02954934]
[1770428088962,1.21792413,2052.7,2051.8,1.82767845]
[1770428089327,5.41579041,2052.7,2051.8,1.82767845]
[1770428089526,4.19786628,2052.6,2051.8,1.82767845]
[1770428089728,0.54157904,2052.5,2051.8,1.82767845]
[1770428090934,1.21792413,2052.7,2051.8,1.82767845]
[1770428091923,1.21792413,2052.7,2051.8,5.85722779]
[1770428093457,5.41579041,2052.7,2051.8,1.82767845]
[1770428093624,5.41579041,2052.7,2051.8,1.21843747]
[1770428094156,4.19786628,2052.6,2051.8,1.21843747]
[1770428095257,0.519698,2052.8,2051.9,4.02954934]
[1770428095457,0.2335703,2053.5,2051.9,4.02954934]
[1770428095458,5.41558137,2053.1,2052.1,3.98311321]
[1770428095635,1.21755223,2053.3,2052.2,4.02954934]
[1770428095959,1.58557485,2053.2,2052.4,4.02954934]
[1770428096159,1.21753947,2053.4,2052.4,4.02954934]
[1770428096462,5.24192598,2053.3,2052.3,0.52478136]
[1770428096629,1.0440597,2053.2,2052.3,0.52478136]
[1770428097653,4.19786628,2053.0,2051.8,4.02954934]
[1770428097853,5.24192598,2052.9,2052.1,1.21825247]
[1770428098039,4.19786628,2052.9,2052.1,1.21825247]
[1770428098235,4.19786628,2052.9,2052.1,1.21825721]
[1770428098446,1.04521877,2052.8,2052.1,1.21825721]
[1770428098634,0.52430851,2052.7,2052.1,1.21825721]
[1770428099640,1.74224022,2052.7,2052.0,0.001]
[1770428099840,0.52630851,2052.7,2052.0,0.001]
[1770428100060,4.19786628,2052.6,2051.5,1.21859391]
[1770428100362,4.19786628,2052.4,2051.8,0.001]
[1770428100658,1.04612339,2052.3,2051.8,0.001]
[1770428100854,5.24398967,2052.3,2051.8,0.001]
[1770428101160,1.04612339,2052.2,2051.8,0.001]
[1770428101558,4.19786628,2052.6,2051.8,0.001]
[1770428101863,5.41595242,2052.4,2051.8,0.001]
[1770428102059,1.04662768,2052.3,2051.8,0.001]
[1770428102362,1.04662768,2052.3,2051.5,1.21862052]
[1770428102559,5.24449396,2052.3,2051.5,1.21862052]
[1770428102753,1.04662768,2052.2,2051.5,1.21862052]
[1770428102944,0.5244494,2052.1,2051.5,1.21862052]
[1770428103645,1.74276892,2052.1,2051.4,1.40039676]
[1770428103842,1.74276892,2052.1,2051.4,0.181764]
[1770428104043,1.74276892,2052.1,2051.4,1.40044338]
[1770428104261,1.74276892,2052.1,2051.4,0.181764]
[1770428104467,0.66157033,2052.0,2051.4,0.181764]
[1770428105268,5.24576683,2051.9,2051.4,0.181764]
[1770428105448,1.04790055,2051.8,2051.4,0.181764]
[1770428106371,2.26640228,2051.7,2051.4,0.181764]
[1770428106562,1.04790055,2051.6,2050.9,1.21897171]
[1770428107450,1.04790055,2051.6,2050.8,0.001]
[1770428107451,1.04384055,2051.6,2050.8,1.21998934]
[1770428107648,1.04384055,2051.6,2050.8,1.03343039]
[1770428107957,1.21850173,2051.7,2050.8,1.22003326]
[1770428108264,1.21838296,2051.9,2051.1,4.04706439]
[1770428108474,0.66157033,2052.0,2051.1,4.04706439]
[1770428108646,1.74274685,2052.1,2051.2,4.57366259]
[1770428108841,1.74272068,2052.1,2051.2,4.57366259]
[1770428109466,1.21817411,2052.3,2051.2,4.57366259]
[1770428109793,0.59420913,2052.5,2051.4,4.04706439]
[1770428110081,0.59420913,2052.5,2051.2,0.5265982]
[1770428110082,1.2199467,2052.7,2051.6,4.04706439]
[1770428110240,0.002,2052.7,2051.7,1.21850173]
[1770428110438,0.002,2052.7,2051.8,4.04706439]
[1770428111256,1.20523879,2052.8,2051.8,4.04706439]
[1770428112353,1.19876879,2052.8,2051.8,4.04706439]
[1770428112557,0.60700763,2052.7,2052.0,1.21832358]
[1770428112876,0.002,2052.3,2052.0,1.21832358]
[1770428113263,0.002,2052.3,2052.0,5.26538797]
[1770428114064,0.002,2052.3,2052.0,1.21832358]
[1770428114567,0.002,2052.3,2052.0,5.26538797]
[1770428114867,0.1278398,2054.6,2054.0,0.2545241]
[1770428115069,9.9413368,2054.5,2053.6,4.04706439]
[1770428115570,9.9413368,2054.5,2053.2,0.04391958]
[1770428115571,9.9413368,2054.5,2053.2,4.04706439]
[1770428115778,1.12859642,2054.4,2053.2,4.04706439]
[1770428116067,5.35386031,2054.4,2053.0,2.59291652]
[1770428116266,14.16660069,2054.3,2052.9,6.63998091]
[1770428116471,14.16660069,2054.3,2052.9,4.04706439]
[1770428116660,1.21701879,2054.2,2053.0,1.21773015]
[1770428116976,2.02516946,2054.1,2053.1,1.01359189]
[1770428117177,0.01906946,2054.1,2053.1,1.01359189]
[1770428118470,9.9413368,2054.0,2053.2,4.04706439]
[1770428118651,9.9413368,2054.0,2053.3,5.26461662]
[1770428119354,9.9413368,2054.0,2053.4,4.04706439]
[1770428119961,11.15850135,2054.0,2053.2,1.21761023]
[1770428120156,11.15478135,2054.0,2053.2,1.21761023]
[1770428120356,0.93362375,2053.9,2053.2,1.21761023]
[1770428120660,2.15086476,2053.9,2053.2,1.21761023]
[1770428121387,9.9376168,2053.8,2053.2,1.21761023]
[1770428121578,9.9339068,2053.8,2053.2,1.21761023]
[1770428121774,9.9339068,2053.7,2053.2,1.21761023]
[1770428121957,9.9339068,2053.7,2053.2,2.33250382]
[1770428122282,1.21695954,2054.3,2053.3,4.04706439]
[1770428122655,9.9339068,2054.2,2053.6,4.04706439]
[1770428122981,9.68024136,2054.4,2053.8,4.04706439]
[1770428123278,9.68024136,2054.5,2053.9,4.45177083]
[1770428123859,9.68024136,2054.5,2053.6,4.04706439]
[1770428124057,9.68024136,2054.5,2053.4,1.21749293]
[1770428124284,9.68024136,2054.5,2053.4,5.26455732]
[1770428124765,1.21690031,2054.4,2053.4,5.26455732]
[1770428125159,9.68024136,2054.3,2053.4,5.26455732]
[1770428125359,1.08971417,2054.2,2053.4,6.87650093]
[1770428125976,9.68024136,2054.1,2053.4,6.87650093]
[1770428126488,1.08971417,2054.2,2052.9,5.26481813]
[1770428126489,5.31497806,2054.2,2052.9,5.26481813]
[1770428126674,1.21713729,2054.0,2052.9,4.04706439]
[1770428126874,10.89736578,2054.1,2053.2,2.029643]
[1770428127193,9.68024136,2053.9,2053.1,4.04806439]
[1770428127397,0.96802414,2053.8,2053.1,0.001]
[1770428128564,9.68024136,2053.7,2053.1,0.001]
[1770428128758,10.8974005,2054.0,2053.1,4.04806439]
[1770428129184,9.68024136,2054.0,2053.3,4.04706439]
[1770428129580,9.44977774,2054.0,2053.3,4.04706439]
[1770428130084,0.002,2054.3,2053.3,4.04706439]
[1770428130287,0.002,2054.3,2053.4,4.45177083]
[1770428130671,0.002,2054.3,2053.5,5.26449803]
[1770428131172,0.002,2054.3,2053.5,1.21743364]
[1770428131486,0.001,2054.3,2053.5,1.21743364]
[1770428132497,0.001,2054.3,2053.4,0.40470644]
[1770428132699,1.21701879,2054.2,2053.1,1.21867083]
[1770428132893,1.03113578,2054.1,2053.2,1.01365471]
[1770428134895,1.21713729,2054.0,2053.2,2.23122352]
[1770428136365,1.21713729,2054.0,2053.2,1.01365471]
[1770428136666,5.79064089,2054.0,2053.1,0.001]
[1770428138176,4.5735036,2053.9,2052.5,3.37129102]
[1770428138376,4.5735036,2053.9,2052.5,1.21799702]
[1770428138890,4.5735036,2053.9,2052.6,4.33504132]
[1770428138891,1.21725581,2053.8,2052.6,4.33504132]
[1770428139188,1.21725581,2053.8,2052.7,4.76854545]
[1770428140192,1.21725581,2053.8,2053.4,0.001]
[1770428140899,4.86902327,2054.0,2053.4,0.001]
[1770428142805,1.21712031,2054.1,2053.4,0.001]
[1770428143115,4.87031215,2054.2,2053.4,0.001]
[1770428143116,0.002,2054.2,2053.4,0.001]
[1770428143267,0.002,2054.2,2053.4,0.55635936]
[1770428146277,0.002,2054.2,2053.4,1.77384086]
[1770428146476,0.002,2054.2,2053.4,0.55635936]
[1770428148489,0.002,2054.2,2053.4,1.77380425]
[1770428148797,0.002,2054.2,2053.4,0.55635936]
[1770428149998,0.002,2054.2,2053.6,4.33504132]
[1770428150317,0.002,2054.2,2053.7,0.43350413]
[1770428150518,0.002,2054.2,2053.4,1.7738253]
[1770428151399,0.002,2054.2,2053.4,0.55635936]
[1770428151736,0.002,2054.2,2053.5,4.33504132]
[1770428152696,4.5755036,2054.2,2053.4,0.55635936]
[1770428152896,4.5755036,2054.2,2053.4,0.001]
[1770428153524,0.002,2054.2,2053.4,0.001]
[1770428153825,0.002,2054.0,2053.4,0.001]
[1770428156307,0.002,2054.0,2053.4,4.33604132]
[1770428156613,0.002,2054.0,2053.5,0.55545914]
[1770428156817,0.002,2054.0,2053.5,4.89050046]
[1770428156997,0.002,2054.0,2053.5,0.55545914]
[1770428157198,0.002,2054.0,2053.4,0.001]
[1770428157832,5.79264089,2054.0,2053.4,0.001]
[1770428158327,1.21913729,2054.0,2053.3,0.001]
[1770428158508,1.21913729,2054.0,2053.3,4.33604132]
[1770428158827,1.21913729,2054.0,2053.3,0.001]
[1770428159134,2.31476085,2054.0,2053.3,0.001]
[1770428160531,2.31476085,2054.0,2053.0,5.55276661]
[1770428161426,0.002,2054.0,2053.1,4.33504132]
[1770428161830,4.86737336,2054.5,2053.1,4.33504132]
[1770428161831,1.21687812,2054.5,2053.3,4.33504132]
[1770428162039,1.21687812,2054.5,2053.5,4.33504132]
[1770428162240,2.3247997,2054.5,2053.6,0.43350413]
[1770428162744,2.3247997,2054.5,2053.6,1.65086111]
[1770428162907,2.3247997,2054.5,2053.6,0.43350413]
[1770428163536,2.3247997,2054.5,2053.6,5.98589199]
[1770428163742,2.3247997,2054.5,2053.6,1.65085678]
[1770428163941,2.3247997,2054.5,2053.6,0.43350413]
[1770428164125,0.7319773,2054.4,2053.6,0.43350413]
[1770428164433,0.7319773,2054.4,2053.3,9.2051678]
[1770428164434,1.21695954,2054.3,2053.3,5.55255806]
[1770428164812,1.21695954,2054.3,2053.2,1.21758481]
[1770428165412,5.79046314,2054.3,2053.1,5.55269773]
[1770428165640,4.5735036,2054.2,2053.1,5.55269837]
[1770428165823,4.91978162,2054.1,2053.2,0.55526984]
[1770428166024,4.91978162,2054.1,2053.1,1.21765705]
[1770428166242,4.91978162,2054.1,2053.0,1.21768363]
[1770428166419,1.21713729,2054.0,2053.3,0.001]
[1770428172372,4.5390703,2053.9,2053.3,5.8e-07]
[1770428172525,1.21725581,2053.8,2053.3,5.8e-07]
[1770428172724,0.75119656,2053.7,2053.3,5.8e-07]
[1770428172964,0.75119656,2053.7,2053.0,0.001]
[1770428173287,0.5,2053.6,2053.0,0.001]
[1770428174330,1.21725581,2053.8,2053.0,4.1269097]
[1770428174733,4.86901098,2054.0,2053.1,4.1259097]
[1770428174961,0.66651946,2053.9,2053.1,4.1259097]
[1770428175345,4.86901098,2054.0,2053.1,4.1259097]
[1770428175956,4.86901098,2054.0,2053.0,0.001]
[1770428176134,9.40808128,2054.0,2053.0,0.001]
[1770428179967,9.40808128,2054.0,2053.2,0.001]
[1770428180163,0.002,2053.9,2053.2,0.001]
[1770428180341,1.12262649,2053.9,2053.2,0.001]
[1770428181576,1.21725581,2053.8,2053.2,0.001]
[1770428182577,1.21923664,2053.9,2053.2,4.1269097]
[1770428183761,0.002,2053.9,2053.2,4.1269097]
[1770428183972,0.002,2053.9,2053.2,5.34451735]
[1770428184154,0.002,2053.9,2053.3,0.53445174]
[1770428184753,0.002,2053.9,2053.3,4.66036144]
[1770428185671,0.002,2053.9,2053.5,4.1259097]
[1770428186377,4.5410703,2053.9,2053.3,0.53445174]
[1770428186548,0.45410703,2053.8,2052.9,1.21778896]
[1770428186754,0.002,2053.9,2053.3,5.3434492]
[1770428188777,0.002,2053.9,2053.4,4.1259097]
[1770428191183,0.002,2053.9,2053.5,1.21743364]
[1770428192298,0.002,2054.1,2053.6,4.1259097]
[1770428193362,0.002,2054.1,2053.7,5.34322478]
[1770428193673,0.002,2054.1,2053.8,5.14715821]
[1770428193980,0.002,2053.9,2053.8,5.14715821]
[1770428194484,0.002,2054.1,2053.8,5.14715821]
[1770428194662,0.1278398,2054.6,2053.9,4.1259097]
[1770428195264,0.1278398,2054.6,2054.0,1.21713729]
[1770428195467,0.1278398,2054.6,2054.1,4.73447835]
[1770428196182,0.1278398,2054.6,2054.1,0.60856865]
[1770428196379,0.1278398,2054.6,2054.1,4.99848306]
[1770428197385,0.1278398,2054.6,2054.2,1.21701879]
[1770428198086,0.1278398,2054.6,2054.1,6.21551636]
[1770428199170,1.34464019,2054.6,2054.0,1.21713356]
[1770428199486,0.1278398,2054.6,2053.9,5.60711096]
[1770428199693,0.1278398,2054.6,2054.0,4.38991441]
[1770428201172,1e-08,2054.6,2054.0,4.38991441]
[1770428201506,4.86479628,2055.6,2054.3,4.38991441]
[1770428201794,4.86479628,2055.6,2054.5,4.38991441]
[1770428201795,0.60809862,2055.5,2054.5,4.38991441]
[1770428203603,1.82435125,2055.5,2054.7,4.38991441]
[1770428204202,1.21601245,2055.9,2054.7,4.38991441]
[1770428205096,5.47999828,2055.9,2054.7,4.38991441]
[1770428205498,5.47999828,2055.9,2054.8,1.21666342]
[1770428205678,5.47999828,2055.9,2054.8,5.60657783]
[1770428206002,1.03438248,2055.8,2054.8,6.65392338]
[1770428206201,1.03438248,2055.8,2054.9,4.38991441]
[1770428206502,1.21601245,2055.9,2054.9,4.38991441]
[1770428206900,4.86373097,2056.1,2054.9,4.38991441]
[1770428207074,1.21589416,2056.1,2054.9,4.38991441]
[1770428207471,4.86287562,2056.4,2055.1,4.38991441]
[1770428208005,0.33494358,2057.3,2056.5,4.38991441]
[1770428208206,0.32471945,2057.9,2056.8,4.38991441]
[1770428208394,0.25370323,2058.3,2057.9,0.32471945]
[1770428208605,1.21441756,2058.6,2057.5,4.38991441]
[1770428208795,0.61997313,2058.5,2057.5,4.82890585]
[1770428209601,1.21453556,2058.4,2057.6,1.21500777]
[1770428209806,1.21453556,2058.4,2057.5,6.04392989]
[1770428210178,1.83446995,2058.5,2057.6,4.38991441]
[1770428210679,0.61997313,2058.5,2057.6,4.38991441]
[1770428210880,1.83445805,2058.5,2057.7,0.60439299]
[1770428211075,1.83445385,2058.5,2057.7,4.9943074]
[1770428211279,1.83445952,2058.5,2057.7,4.9943074]
[1770428211506,1.83445952,2058.5,2057.5,1.65405502]
[1770428211707,1.83445952,2058.5,2057.6,4.38991441]
[1770428212503,1.83445952,2058.5,2057.5,1.21506358]
[1770428212684,1.83445952,2058.5,2057.5,1.21506464]
[1770428212885,0.66923507,2058.4,2057.5,1.21506464]
[1770428213815,0.66923507,2058.4,2057.3,1.21518495]
[1770428213816,1.21459456,2058.3,2057.3,1.21518495]
[1770428214108,1.21459456,2058.3,2057.2,1.21520192]
[1770428215606,5.47858039,2058.3,2057.2,1.21520192]
[1770428215793,5.47858039,2058.3,2057.0,5.605253]
[1770428216111,5.0369978,2058.2,2057.0,0.5605253]
[1770428216413,5.0369978,2058.2,2057.0,1.77588526]
[1770428218408,1.21471259,2058.1,2057.0,1.77588526]
[1770428218713,5.47869842,2058.1,2057.0,1.77588526]
[1770428218902,0.61997313,2058.0,2057.0,1.77588526]
[1770428219434,4.26398583,2057.9,2056.4,4.38991441]
[1770428219734,4.26398583,2057.8,2056.4,4.38991441]
[1770428220022,4.26398583,2057.8,2056.4,5.60562905]
[1770428220188,4.76398583,2057.8,2056.4,5.60562905]
[1770428220389,4.26398583,2057.6,2056.3,8.1761267]
[1770428220694,4.26398583,2057.4,2056.3,8.1761267]
[1770428222288,1.21494872,2057.7,2056.5,4.38991441]
[1770428222605,1.21494872,2057.7,2056.7,4.38991441]
[1770428222813,1.21494872,2057.7,2056.8,4.38991441]
[1770428223009,0.60747436,2057.6,2056.9,0.74998564]
[1770428223897,0.60747436,2057.6,2056.9,5.13990005]
[1770428224115,0.60747436,2057.6,2056.9,0.74998564]
[1770428224414,0.60747436,2057.6,2056.8,2.835036]
[1770428224621,1.21506682,2057.5,2056.9,1.21542126]
[1770428224816,1.21506682,2057.5,2056.9,5.60533567]
[1770428225114,4.85979491,2057.9,2056.9,5.60533567]
[1770428225115,1.21488968,2057.8,2056.9,5.60533567]
[1770428225325,1.83478111,2058.0,2057.0,4.38991441]
[1770428225609,1.83478111,2058.0,2057.2,4.38991441]
[1770428226915,1.83478111,2058.0,2057.3,5.33015906]
[1770428227086,1.83478111,2058.0,2057.3,4.11497411]
[1770428227287,1.83478111,2058.0,2057.2,1.2151969]
[1770428228489,1.83478111,2058.0,2057.3,4.40271058]
[1770428228700,1.83478111,2058.0,2057.3,5.50666527]
[1770428229928,1.83478111,2058.0,2057.3,6.72184476]
[1770428230105,1.83478111,2058.0,2057.3,5.50666527]
[1770428231330,1.83478111,2058.0,2057.3,1.10395469]
[1770428231532,1.83478111,2058.0,2057.3,2.31912084]
[1770428231900,1.83478111,2058.0,2057.3,1.10395469]
[1770428232237,4.94017501,2057.9,2056.9,2.298591]
[1770428232527,4.94017501,2057.9,2057.4,0.001]
[1770428233301,1.21488968,2057.8,2057.4,0.001]
[1770428233703,4.27078981,2057.7,2056.7,1.21553634]
[1770428233927,0.5,2057.6,2056.5,4.40271058]
[1770428234121,4.27078981,2057.5,2056.3,8.1761267]
[1770428234516,4.27078981,2057.2,2056.3,8.1761267]
[1770428235502,1.21530309,2057.1,2056.3,8.1761267]
[1770428235724,0.61997313,2057.0,2056.3,8.1761267]
[1770428236313,0.61997313,2057.0,2055.5,5.61892355]
[1770428236314,1.43392923,2056.9,2055.5,5.61892355]
[1770428236525,0.61997313,2057.0,2056.0,4.40271058]
[1770428236717,0.61997313,2057.0,2056.1,0.5618691]
[1770428237519,1.21542126,2056.9,2056.1,0.5618691]
[1770428237807,1.21542126,2056.9,2055.7,4.40271058]
[1770428238003,1.21542126,2056.9,2055.9,4.40271058]
[1770428238431,1.21542126,2056.9,2056.0,4.40271058]
[1770428238607,1.21542126,2056.9,2056.1,4.40271058]
[1770428239903,1.21542126,2056.9,2055.8,4.40271058]
[1770428240105,0.6693852,2056.8,2055.9,0.56188027]
[1770428240708,0.6693852,2056.8,2055.9,4.96459085]
[1770428241844,1.21553945,2056.7,2055.9,4.96459085]
[1770428242138,1.21553945,2056.7,2056.0,4.40271058]
[1770428242337,1.21542126,2056.9,2056.2,4.40271058]
[1770428242540,1.21542126,2056.9,2056.4,4.40271058]
[1770428243534,4.86161269,2057.0,2056.4,4.40271058]
[1770428243535,1.21540357,2057.0,2056.4,4.40271058]
[1770428244328,1.21512588,2057.4,2056.6,4.40271058]
[1770428246232,4.86037603,2057.5,2056.6,4.40271058]
[1770428246410,0.97208747,2057.4,2056.6,4.40271058]
[1770428246818,0.002,2057.2,2056.6,4.40271058]
[1770428247614,0.002,2057.2,2056.7,4.40271058]
[1770428249035,0.5,2057.0,2056.7,4.40271058]
[1770428251321,1.71536709,2057.0,2056.7,4.40271058]
[1770428251622,1.21536709,2057.0,2056.7,4.40271058]
[1770428251831,1.82515247,2057.0,2056.4,4.40271058]
[1770428252340,1.82515247,2057.0,2056.1,4.40371058]
[1770428252341,1.21536709,2057.0,2056.1,4.40371058]
[1770428252929,4.86121308,2057.1,2056.1,4.40371058]
[1770428254112,0.5,2056.9,2056.1,4.40371058]
[1770428254647,0.5,2056.9,2056.1,0.001]
[1770428255049,1.21548035,2056.8,2056.1,0.001]
[1770428255347,0.65774018,2056.7,2056.1,0.001]
[1770428257221,1.21559856,2056.6,2056.1,0.001]
[1770428257640,0.5,2056.9,2056.1,4.18367921]
[1770428257956,1.21544507,2056.9,2056.1,4.18367921]
[1770428258360,4.86138247,2057.1,2056.1,4.18367921]
[1770428258644,1.21530309,2057.1,2056.3,4.18267921]
[1770428258860,1.23679101,2057.2,2056.3,4.18267921]
[1770428259225,1.23679101,2057.2,2056.5,4.18267921]
[1770428259447,0.002,2056.6,2056.5,4.18267921]
[1770428260135,0.002,2056.6,2056.2,5.28167725]
[1770428260136,0.002,2056.6,2056.2,5.81687635]
[1770428260340,0.002,2056.6,2056.2,4.60104713]
[1770428260648,1.23674877,2057.2,2056.4,4.18267921]
[1770428261371,1.23674877,2057.2,2056.6,4.18267921]
[1770428262847,2.34668991,2057.2,2056.6,4.18267921]
[1770428263273,2.34668991,2057.2,2056.1,0.001]
[1770428263435,1.56000485,2057.0,2056.1,0.001]
[1770428263636,1.56000485,2057.0,2055.9,0.001]
[1770428263831,1.50703038,2056.6,2055.9,0.001]
[1770428264162,1.50703038,2056.6,2055.4,4.18267921]
[1770428264364,1.50703038,2056.6,2055.4,5.20915098]
[1770428266636,1.21565767,2056.5,2055.4,6.42545611]
[1770428266860,1.21565767,2056.5,2055.4,5.20915098]
[1770428270887,1.21565767,2056.5,2055.4,6.42545412]
[1770428271067,1.21565767,2056.5,2055.5,4.18267921]
[1770428271369,0.75853187,2056.4,2055.5,4.82522462]
[1770428271949,0.75853187,2056.4,2055.8,4.18267921]
[1770428272370,1.2157759,2056.3,2055.8,4.18267921]
[1770428273442,1.21576304,2056.4,2055.9,4.18267921]
[1770428273655,1.2176684,2056.5,2055.9,4.72265636]
[1770428274444,0.002,2056.5,2055.9,4.72265636]
[1770428280960,0.002,2056.5,2056.0,4.18267921]
[1770428282083,0.002,2056.5,2056.0,5.39862734]
[1770428282257,0.002,2056.5,2055.9,0.53997715]
[1770428282675,0.002,2056.5,2055.9,4.72265636]
[1770428285499,0.002,2056.3,2055.9,4.72265636]
[1770428286063,0.002,2056.5,2056.0,4.34814268]
[1770428286258,0.002,2056.5,2056.1,1.21589416]
[1770428286463,0.002,2056.5,2056.2,4.95610851]
[1770428287481,0.002,2056.5,2056.0,4.34814268]
[1770428288186,0.002,2056.5,2056.1,4.19885289]
[1770428290396,1.06872875,2055.2,2054.6,0.001]
[1770428290566,1.28908397,2055.8,2054.7,4.19885289]
[1770428290762,1.04722899,2055.7,2054.7,5.22725086]
[1770428290992,1.04722899,2055.6,2054.7,5.22725086]
[1770428291172,1.04722899,2055.5,2054.7,5.22725086]
[1770428291490,1.04722899,2055.4,2054.9,4.19885289]
[1770428291665,5.57923006,2056.3,2054.8,4.19885289]
[1770428291869,1.17243088,2056.2,2055.0,4.19885289]
[1770428292384,1.21589416,2056.1,2055.1,1.21648581]
[1770428292977,1.21589416,2056.1,2055.0,5.41535273]
[1770428293666,1.21589416,2056.1,2055.0,1.21649984]
[1770428293892,1.21589416,2056.1,2055.1,4.19885289]
[1770428294100,0.5,2055.9,2055.2,0.54153527]
[1770428294783,1.2160716,2055.8,2055.2,0.54153527]
[1770428295367,1.2160716,2055.8,2055.1,4.19885289]
[1770428295696,1.2160716,2055.8,2054.9,0.52272509]
[1770428296194,1.2160716,2055.8,2055.0,5.41539114]
[1770428296384,1.2160716,2055.8,2054.9,1.73929158]
[1770428296587,1.2160716,2055.8,2054.9,0.52272509]
[1770428296792,1.21618992,2055.6,2054.9,0.52272509]
[1770428296985,1.21618992,2055.6,2055.0,4.19885289]
[1770428297495,1.21618992,2055.6,2055.2,0.001]
[1770428299278,1.21618992,2055.6,2055.0,0.001]
[1770428301299,1.21618992,2055.6,2055.0,4.19985289]
[1770428301485,1.21618992,2055.6,2055.1,0.59391782]
[1770428302194,1.21618992,2055.6,2055.1,4.79277071]
[1770428303379,1.21601245,2055.9,2055.1,4.79277071]
[1770428303806,0.5,2055.5,2055.1,4.79277071]
[1770428304100,1.04492655,2055.4,2055.1,4.79277071]
[1770428304298,1.04492655,2055.3,2055.1,4.79277071]
[1770428304601,1.04492655,2055.2,2055.1,4.79277071]
[1770428305497,1.21601245,2055.9,2055.2,4.19885289]
[1770428305673,1.72514801,2055.8,2055.2,4.19885289]
[1770428305872,1.04462277,2055.7,2055.2,4.19885289]
[1770428306178,1.04461441,2055.6,2055.2,4.19885289]
[1770428306374,1.04461441,2055.5,2055.2,4.19885289]
[1770428306697,1.04461441,2055.4,2055.2,4.19885289]
[1770428306882,0.68052524,2055.8,2055.2,5.28649548]
[1770428307083,1.04456959,2055.7,2055.2,5.28649548]
[1770428307402,1.04456959,2055.6,2055.2,5.28649548]
[1770428307596,2.26082179,2055.5,2055.2,5.28649548]
[1770428307801,2.26082179,2055.5,2055.2,4.19885289]
[1770428307802,1.04456959,2055.4,2055.2,4.19885289]
[1770428307969,1.04456959,2055.3,2055.2,4.19885289]
[1770428308686,1.21622802,2055.6,2055.2,4.19885289]
[1770428308877,1.04456767,2055.5,2055.2,4.19885289]
[1770428309072,1.04456767,2055.4,2055.2,4.19885289]
[1770428309399,1.21622802,2055.6,2055.1,5.41533836]
[1770428309699,4.86463514,2055.7,2055.1,5.41533836]
[1770428309700,1.04460383,2055.5,2055.2,4.19885289]
[1770428309996,1.04460383,2055.4,2055.2,4.19885289]
[1770428310204,4.86463514,2055.7,2055.2,4.19885289]
[1770428310374,1.04469896,2055.6,2055.2,4.19885289]
[1770428310575,1.04469896,2055.5,2055.2,4.19885289]
[1770428310807,1.04469896,2055.4,2055.3,4.19885289]
[1770428311102,1.04469896,2055.4,2055.2,0.001]
[1770428311409,1.04469896,2055.3,2055.2,0.001]
[1770428315207,1.04469896,2055.3,2055.0,0.001]
[1770428315208,2.2610664,2055.3,2055.0,0.001]
[1770428315508,1.04469896,2055.2,2055.0,4.19985289]
[1770428315808,1.04469896,2055.1,2055.0,4.19985289]
[1770428316503,0.002,2055.4,2055.1,3.96261666]
[1770428316722,0.002,2055.6,2055.2,3.96261666]
[1770428316902,0.002,2055.6,2055.0,2.24585213]
[1770428316903,1.21595891,2056.0,2055.1,3.96261666]
[1770428318687,4.86253604,2056.6,2055.3,3.96261666]
[1770428319020,0.5,2055.9,2055.3,3.96261666]
[1770428319226,0.5,2055.9,2055.5,3.96261666]
[1770428319731,4.86253604,2056.6,2055.5,3.96261666]
[1770428320679,2.15022311,2056.6,2055.5,5.17883021]
[1770428321909,2.15022311,2056.6,2055.6,3.96261666]
[1770428322118,1.21559856,2056.7,2055.6,3.96261666]
[1770428322306,0.60775215,2056.6,2055.7,4.48049968]
[1770428322814,1.21565767,2056.5,2055.7,4.48049968]
[1770428324115,0.5,2056.3,2055.7,4.48049968]
[1770428324413,0.5,2056.3,2055.8,3.96261666]
[1770428326118,1.21583503,2056.2,2055.8,3.96261666]
[1770428326800,1.71581567,2056.3,2055.8,3.96261666]
[1770428327002,1.71581567,2056.3,2055.9,3.96261666]
[1770428327316,0.5,2056.3,2055.9,3.96261666]
[1770428327512,1.71578501,2056.3,2055.9,3.96261666]
[1770428328392,1.04699582,2056.2,2055.9,3.96261666]